fUST/lending_fUST_20250928
["ID","MTS","AMOUNT","RATE_DAILY","PERIOD"]
[388157410,1759021853178,-480.0,0.0003589,9]
[388157411,1759021853187,-1700.66,0.0003589,9]
[388157412,1759021853196,-2086.92,0.0003589,9]
[388157413,1759021853205,-1102.93,0.0003589,9]
[388157414,1759021853215,-1044.34,0.0003589,9]
[388157415,1759021853224,-480.0,0.0003589,9]
[388157416,1759021853234,-2806.77,0.0003589,9]
[388157417,1759021853243,-524.4,0.0003589,9]
[388157418,1759021853252,-1080.86,0.0003589,9]
[388157419,1759021853261,-480.0,0.0003589,9]
[388157420,1759021853271,-480.0,0.0003589,9]
[388157421,1759021853280,-480.0,0.0003589,9]
[388157422,1759021853290,-480.0,0.0003589,9]
[388157423,1759021853300,-1154.18,0.0003589,9]
[388157424,1759021853310,-866.78,0.0003589,9]
[388157425,1759021853320,-912.3,0.0003589,9]
[388157426,1759021853329,-480.0,0.0003589,9]
[388157427,1759021853339,-1082.98,0.0003589,9]
[388157428,1759021853349,-480.0,0.0003589,9]
[388157429,1759021853359,-519.52,0.0003589,9]
[388157430,1759021853368,-2497.45,0.0003589,9]
[388157431,1759021853378,-897.78,0.0003589,9]
[388157432,1759021853389,-480.0,0.0003589,7]
[388157433,1759021853399,-1335.16,0.0003589,9]
[388157434,1759021853409,-480.0,0.0003589,9]
[388157435,1759021853419,-480.0,0.0003589,9]
[388157436,1759021853428,-480.0,0.0003589,9]
[388157437,1759021853438,-1774.65,0.0003589,9]
[388157438,1759021853447,-3243.57,0.0003589,9]
[388157439,1759021853457,-480.0,0.0003589,9]
[388157440,1759021853467,-480.0,0.0003589,9]
[388157441,1759021853477,-7454.79,0.0003589,3]
[388157442,1759021853487,-618.6,0.0003589,9]
[388157443,1759021853497,-494.43155944,0.0003589,9]
[388157444,1759021853509,-480.0,0.0003589,9]
[388157445,1759021853518,-480.0,0.0003589,9]
[388157446,1759021853529,-240.36,0.0003589,9]
[388157447,1759021853539,-480.0,0.0003589,9]
[388157448,1759021853549,-403.61,0.0003589,9]
[388157449,1759021853559,-773.77,0.0003589,9]
[388157450,1759021853568,-513.39610515,0.0003589,9]
[388157451,1759021853578,-1046.28,0.0003589,9]
[388157452,1759021853586,-480.0,0.0003589,9]
[388157453,1759021853595,-480.0,0.0003589,9]
[388157454,1759021853605,-480.0,0.0003589,9]
[388157455,1759021853615,-480.0,0.0003589,9]
[388157456,1759021853624,-480.0,0.0003589,9]
[388157457,1759021853634,-2745.57,0.0003589,9]
[388157458,1759021853644,-881.76,0.0003589,9]
[388157459,1759021853654,-480.0,0.0003589,9]
[388157460,1759021853664,-480.0,0.0003589,9]
[388157461,1759021853673,-2935.14,0.0003589,9]
[388157462,1759021853683,-480.0,0.0003589,9]
[388157463,1759021853692,-480.0,0.0003589,9]
[388157464,1759021853702,-480.0,0.0003589,9]
[388157465,1759021853712,-1226.13,0.0003589,9]
[388157466,1759021853722,-961.28,0.0003589,9]
[388157467,1759021853731,-4547.28,0.0003589,9]
[388157468,1759021853742,-480.0,0.0003589,9]
[388157469,1759021853752,-4560.47,0.0003589,9]
[388157470,1759021853763,-919.9,0.0003589,9]
[388157471,1759021853772,-250.28963552,0.0003589,9]
[388157472,1759021853782,-480.0,0.0003589,9]
[388157473,1759021853791,-747.84,0.0003589,9]
[388157474,1759021853801,-974.85,0.0003589,9]
[388157475,1759021853811,-591.23,0.0003589,9]
[388157476,1759021853821,-1794.77,0.0003589,9]
[388157477,1759021853831,-18356.1,0.0003589,9]
[388157478,1759021853841,-480.0,0.0003589,9]
[388157479,1759021853851,-949.82,0.0003589,9]
[388157480,1759021853860,-5340.66,0.0003589,9]
[388157481,1759021853870,-913.35,0.0003589,9]
[388157482,1759021853879,-1150.28,0.0003589,9]
[388157483,1759021853889,-1070.25,0.0003589,9]
[388157484,1759021853899,-301.74245418,0.0003589,9]
[388157485,1759021854247,-817.28754582,0.0003589,9]
[388157486,1759021854257,-480.0,0.0003589,9]
[388157487,1759021854267,-914.26,0.0003589,9]
[388157488,1759021854276,-480.0,0.0003589,9]
[388157489,1759021854286,-480.0,0.0003589,9]
[388157490,1759021854295,-713.22,0.0003589,9]
[388157491,1759021854304,-480.0,0.0003589,9]
[388157492,1759021854313,-1227.11,0.0003589,9]
[388157493,1759021854323,-696.55,0.0003589,9]
[388157494,1759021854333,-2399.0,0.0003589,9]
[388157495,1759021854343,-1892.08,0.0003589,9]
[388157496,1759021854353,-1120.26,0.0003589,9]
[388157497,1759021854362,-750.18,0.0003589,9]
[388157498,1759021854371,-480.0,0.0003589,9]
[388157499,1759021854380,-1898.46,0.0003589,9]
[388157500,1759021854388,-480.0,0.0003589,9]
[388157501,1759021854396,-480.0,0.0003589,9]
[388157502,1759021854404,-2212.95,0.0003589,9]
[388157503,1759021854412,-1461.14,0.0003589,9]
[388157504,1759021854420,-2403.61,0.0003589,9]
[388157505,1759021854428,-480.0,0.0003589,9]
[388157506,1759021854436,-480.0,0.0003589,9]
[388157507,1759021854444,-633.36,0.0003589,9]
[388157508,1759021854453,-480.0,0.0003589,9]
[388157509,1759021854463,-480.0,0.0003589,9]
[388157510,1759021854472,-606.97,0.0003589,9]
[388157511,1759021854482,-854.17,0.0003589,9]
[388157512,1759021854491,-972.78,0.0003589,9]
[388157513,1759021854505,-480.0,0.0003589,9]
[388157514,1759021854514,-480.0,0.0003589,9]
[388157515,1759021854533,-480.0,0.0003589,9]
[388157516,1759021854542,-480.0,0.0003589,9]
[388157517,1759021854553,-728.93,0.0003589,9]
[388157518,1759021854563,-480.0,0.0003589,9]
[388157519,1759021854574,-480.0,0.0003589,9]
[388157520,1759021854585,-548.66,0.0003589,9]
[388157521,1759021854598,-687.81,0.0003589,9]
[388157522,1759021854607,-480.0,0.0003589,9]
[388157523,1759021854617,-480.0,0.0003589,9]
[388157524,1759021854626,-2145.74,0.0003589,9]
[388157525,1759021854637,-480.0,0.0003589,9]
[388157526,1759021854646,-1024.17,0.0003589,9]
[388157527,1759021854655,-983.57,0.0003589,9]
[388157528,1759021854664,-480.0,0.0003589,9]
[388157529,1759021854674,-480.0,0.0003589,9]
[388157530,1759021854683,-480.0,0.0003589,9]
[388157531,1759021854695,-5765.62,0.0003589,9]
[388157532,1759021854705,-480.59246332,0.0003589,9]
[388157533,1759021854715,-9721.17,0.0003589,9]
[388157534,1759021854723,-9554.34,0.0003589,9]
[388157535,1759021854733,-301.040497,0.0003589,30]
[388157536,1759021854742,-301.040497,0.0003589,30]
[388157537,1759021854751,-781.83,0.0003589,9]
[388157538,1759021854760,-301.040497,0.0003589,30]
[388157539,1759021854771,-480.0,0.0003589,9]
[388157540,1759021854780,-555.48,0.0003589,9]
[388157541,1759021854789,-752.1,0.0003589,9]
[388157542,1759021854798,-301.040493,0.0003589,30]
[388157543,1759021854807,-480.0,0.0003589,9]
[388157544,1759021854816,-480.0,0.0003589,9]
[388157545,1759021854826,-480.0,0.0003589,9]
[388157546,1759021854835,-480.0,0.0003589,9]
[388157547,1759021854844,-480.0,0.0003589,9]
[388157548,1759021854853,-1863.14,0.0003589,9]
[388157549,1759021854863,-480.0,0.0003589,9]
[388157550,1759021854873,-597.76,0.0003589,9]
[388157551,1759021854881,-480.0,0.0003589,9]
[388157552,1759021854890,-1965.72,0.0003589,9]
[388157553,1759021854899,-480.0,0.0003589,9]
[388157554,1759021854908,-480.0,0.0003589,9]
[388157555,1759021854917,-2624.76,0.0003589,9]
[388157556,1759021854926,-1023.59,0.0003589,9]
[388157557,1759021854935,-4331.36,0.0003589,9]
[388157558,1759021854946,-480.0,0.0003589,9]
[388157559,1759021854955,-480.0,0.0003589,9]
[388157560,1759021854964,-633.54,0.0003589,9]
[388157561,1759021854974,-501.82,0.0003589,9]
[388157562,1759021854983,-480.0,0.0003589,9]
[388157563,1759021854993,-524.4,0.0003589,9]
[388157564,1759021855002,-901.94,0.0003589,9]
[388157565,1759021855011,-2166.38,0.0003589,9]
[388157566,1759021855020,-981.11,0.0003589,9]
[388157567,1759021855030,-480.0,0.0003589,9]
[388157568,1759021855039,-480.0,0.0003589,9]
[388157569,1759021855049,-480.0,0.0003589,9]
[388157570,1759021855058,-480.0,0.0003589,9]
[388157571,1759021855067,-480.0,0.0003589,9]
[388157572,1759021855077,-5171.65,0.0003589,9]
[388157573,1759021855086,-480.0,0.0003589,9]
[388157574,1759021855095,-480.0,0.0003589,9]
[388157575,1759021855104,-1528.18,0.0003589,9]
[388157576,1759021855114,-480.0,0.0003589,9]
[388157577,1759021855123,-718.88,0.0003589,9]
[388157578,1759021855132,-1004.49,0.0003589,9]
[388157579,1759021855141,-480.0,0.0003589,9]
[388157580,1759021855151,-162.0,0.0003589,14]
[388157581,1759021855160,-162.0,0.0003589,14]
[388157582,1759021855169,-172.0,0.0003589,14]
[388157583,1759021855178,-162.0,0.0003589,14]
[388157584,1759021855187,-480.0,0.0003589,9]
[388157585,1759021855195,-509.09,0.0003589,9]
[388157586,1759021855204,-1397.26,0.0003589,9]
[388157587,1759021855213,-480.0,0.0003589,9]
[388157588,1759021855221,-480.0,0.0003589,9]
[388157589,1759021855229,-480.0,0.0003589,9]
[388157590,1759021855238,-611.7,0.0003589,9]
[388157591,1759021855247,-3041.11,0.0003589,9]
[388157592,1759021855256,-480.0,0.0003589,9]
[388157593,1759021855264,-4827.31,0.0003589,9]
[388157594,1759021855273,-1027.43,0.0003589,9]
[388157595,1759021855282,-480.0,0.0003589,9]
[388157596,1759021855291,-480.0,0.0003589,9]
[388157597,1759021855299,-480.0,0.0003589,9]
[388157598,1759021855308,-3639.33,0.0003589,9]
[388157599,1759021855316,-480.0,0.0003589,9]
[388157600,1759021855325,-487.02606013,0.0003589,9]
[388157601,1759021855334,-593.59,0.0003589,9]
[388157602,1759021855343,-552.32,0.0003589,9]
[388157603,1759021855523,-480.0,0.0003589,9]
[388157604,1759021855532,-692.6,0.0003589,9]
[388157605,1759021855541,-157.4339669,0.0003589,9]
[388157606,1759021855914,-1891.18969746,0.00034253,2]
[388157607,1759021855925,-267.0,0.00034253,2]
[388157608,1759021855941,-1286.02435594,0.00034253,2]
[388157609,1759021855950,-151.0,0.00035616,7]
[388157610,1759021855960,-151.0,0.00035616,7]
[388157611,1759021855969,-480.0,0.00035616,9]
[388157612,1759021855979,-500.0,0.00035768,2]
[388157613,1759021855988,-151.0,0.00035768,2]
[388157614,1759021855998,-322.5660331,0.0003589,9]
[388157615,1759021856007,-3188.71,0.0003589,9]
[388157616,1759021856016,-480.0,0.0003589,9]
[388157617,1759021856026,-2966.62,0.0003589,9]
[388157618,1759021856035,-232.26249535,0.0003589,9]
[388157619,1759021856530,-480.0,0.00035616,9]
[388157620,1759021856541,-90.29491288,0.00035616,9]
[388157621,1759021857101,-1641.99366189,0.00035022,2]
[388157622,1759021857116,-1802.22039151,0.00035022,2]
[388157623,1759021857125,-66.16459727,0.00035616,9]
[388157650,1759022511783,160.0,0.00025205,2]
[388157653,1759022536148,164.24822905,0.00025205,2]
[388157667,1759022720097,-500.0,0.00031461,7]
[388157668,1759022720129,-1000.0,0.0003171,30]
[388157669,1759022720160,-183.0791997,0.00032233,2]
[388157670,1759022720190,-200.0,0.00032315,15]
[388157671,1759022720222,-223.794693,0.00032376,60]
[388157672,1759022720251,-324.501947,0.00032877,2]
[388157673,1759022720280,-400.0,0.00033103,3]
[388157674,1759022720311,-400.0,0.00033103,2]
[388157675,1759022720344,-188.0,0.00033103,3]
[388157676,1759022720378,-1561.2583206,0.00033103,3]
[388157677,1759022720657,-38.7416794,0.00033103,3]
[388157678,1759022720691,-1200.0,0.00033104,3]
[388157679,1759022720911,-7237.02009155,0.00033104,2]
[388157680,1759022720942,-10000.01,0.00033104,2]
[388157681,1759022720970,-4184.56312859,0.00033104,2]
[388157682,1759022720981,-643.69434133,0.00033104,7]
[388157683,1759022720992,-500.0,0.00033104,7]
[388157684,1759022721003,-328.0,0.00033104,7]
[388157685,1759022721015,-500.0,0.00033104,7]
[388157686,1759022721025,-500.0,0.00033104,7]
[388157687,1759022721037,-534.65557645,0.00033104,7]
[388157688,1759022721047,-156.0,0.00033104,7]
[388157689,1759022721061,-168.0,0.00033105,2]
[388157690,1759022721071,-287.39904695,0.00033745,2]
[388157691,1759022721081,-168.0,0.00033847,2]
[388157692,1759022721091,-160.0,0.00033979,2]
[388157693,1759022721103,-1869.69790668,0.0003399,2]
[388157694,1759022721148,-10000.01,0.0003399,2]
[388157695,1759022721193,-10000.01,0.0003399,2]
[388157696,1759022721312,-10000.01,0.0003399,2]
[388157697,1759022721340,-10000.01,0.0003399,2]
[388157698,1759022721378,-3291.9437984,0.0003399,2]
[388157699,1759022721411,-1148.07135114,0.00034113,2]
[388157700,1759022721503,-1311.70076437,0.00034113,2]
[388157701,1759022721533,-2879.8599682,0.00034141,2]
[388157702,1759022721570,-738.57853486,0.00034202,3]
[388157703,1759022721659,-139.73146514,0.00034202,3]
[388157704,1759022721670,-151.0,0.00034212,2]
[388157705,1759022721680,-90.66970092,0.00034212,2]
[388157706,1759022721700,-60.33029908,0.00034212,2]
[388157707,1759022721710,-151.0,0.00034212,2]
[388157708,1759022721720,-151.0,0.00034212,2]
[388157709,1759022721731,-151.0,0.00034212,2]
[388157710,1759022721742,-151.0,0.00034212,2]
[388157711,1759022721753,-151.0,0.00034212,2]
[388157712,1759022721764,-62.97970092,0.00034212,2]
[388157716,1759022730006,-88.02029908,0.00034212,2]
[388157717,1759022730037,-151.0,0.00034212,2]
[388157718,1759022730070,-151.0,0.00034212,2]
[388157719,1759022730103,-151.0,0.00034212,2]
[388157720,1759022730135,-151.0,0.00034212,2]
[388157721,1759022730168,-151.0,0.00034212,2]
[388157722,1759022730199,-151.0,0.00034212,2]
[388157723,1759022730231,-151.0,0.00034212,2]
[388157724,1759022730264,-292.95880755,0.00034212,2]
[388157725,1759022730419,-7124.05178674,0.00034212,2]
[388157729,1759022740021,-4532.30851479,0.00024953,2]
[388157730,1759022740049,-168.03,0.00034202,3]
[388157731,1759022740100,-599.33297042,0.00034212,2]
[388157733,1759022750058,-10000.01,0.0003299,2]
[388157737,1759022798683,160.0,0.000252,2]
[388157739,1759022799559,160.0,0.000252,2]
[388157740,1759022800407,160.0,0.000252,2]
[388157743,1759022805883,160.0,0.000252,3]
[388157749,1759022831671,160.0,0.000252,3]
[388157751,1759022838080,160.0,0.000252,4]
[388157752,1759022838686,160.0,0.000252,4]
[388157753,1759022848904,4373.038634,0.00025205,2]
[388157754,1759022853104,-1588.55099629,0.00032322,2]
[388157758,1759022872539,626.961366,0.00025205,2]
[388157759,1759022881861,160.0,0.000252,2]
[388157760,1759022884039,160.0,0.000252,3]
[388157761,1759022886381,160.0,0.000252,4]
[388157764,1759022897114,176.56824728,0.000252,5]
[388157771,1759022915118,366.43118137,0.0002,2]
[388157773,1759022923112,1017.59415206,0.000225,2]
[388157774,1759022925276,1839.41641929,0.00019063,7]
[388157775,1759022925298,8633.60362266,0.00019063,7]
[388157780,1759022952126,834.3094557,0.00025205,2]
[388157781,1759023005044,229.43455344,0.00025205,2]
[388157832,1759023032088,-33.74139631,0.00032322,2]
[388157834,1759023032097,-429.56932553,0.00032612,7]
[388157836,1759023032108,-70.43067447,0.00032612,7]
[388157838,1759023032117,-220.0,0.00032989,3]
[388157840,1759023032126,-400.0,0.00032989,2]
[388157844,1759023032135,-235.56932553,0.00032989,3]
[388157846,1759023032145,-1364.43067447,0.00032989,3]
[388157848,1759023032154,-12804.74909,0.0003299,2]
[388157850,1759023032163,-159.2550529,0.00033004,2]
[388157852,1759023032172,-1882.465173,0.00033287,2]
[388157854,1759023032182,-271.33304912,0.00033713,2]
[388157855,1759023032191,-160.0,0.000338,60]
[388157857,1759023032200,-160.0,0.000338,60]
[388157859,1759023032211,-1010.0,0.000338,60]
[388157861,1759023032220,-253.80110063,0.00033812,7]
[388157863,1759023032229,-500.0,0.00033812,7]
[388157864,1759023032238,-255.51598052,0.00033812,7]
[388157866,1759023032247,-263.86734577,0.00033812,7]
[388157868,1759023032256,-266.86228208,0.00033812,7]
[388157869,1759023032265,-500.0,0.00033812,7]
[388157870,1759023032274,-215.47142178,0.00033812,7]
[388157871,1759023032283,-21511.73165948,0.00033813,2]
[388157872,1759023032293,-479.999999,0.00033813,2]
[388157873,1759023032302,-160.0,0.00034,120]
[388157874,1759023032312,-160.0,0.00034,120]
[388157876,1759023032321,-500.0,0.00034043,7]
[388157878,1759023032331,-904.84615552,0.00034113,2]
[388157880,1759023032340,-151.76,0.00034191,2]
[388157881,1759023032349,-44949.6339218,0.00034202,2]
[388157883,1759023032358,-504.1,0.00034202,3]
[388157885,1759023032368,-197.00869215,0.00034209,7]
[388157887,1759023032380,-189.3309625,0.00034211,7]
[388157889,1759023032390,-500.0,0.00034212,7]
[388157891,1759023032400,-151.76,0.00034212,2]
[388157893,1759023032410,-168.0,0.00034215,2]
[388157894,1759023032419,-199.0,0.00034221,14]
[388157896,1759023032429,-16724.53288765,0.00034223,2]
[388157897,1759023032441,-324.78205164,0.00034223,2]
[388157900,1759023032467,-58778.42078378,0.00034223,2]
[388157913,1759023037919,-184.53776214,0.00034209,7]
[388157914,1759023037928,-2929.45342366,0.00034209,7]
[388157918,1759023037939,-363.95455456,0.00034209,7]
[388157922,1759023037948,-294.34417284,0.00034209,7]
[388157925,1759023037959,-2999.06380538,0.00034209,7]
[388157928,1759023037968,-3293.40797822,0.00034209,7]
[388157931,1759023037977,-3293.40797822,0.00034209,7]
[388157934,1759023037988,-3293.40797822,0.00034209,7]
[388157936,1759023037997,-3293.40797822,0.00034209,7]
[388157938,1759023038006,-3293.40797822,0.00034209,7]
[388157940,1759023038015,-3293.40797822,0.00034209,7]
[388157942,1759023038025,-3293.40797822,0.00034209,7]
[388157944,1759023038034,-3293.40797822,0.00034209,7]
[388157946,1759023038043,-3293.40797822,0.00034209,7]
[388157948,1759023038055,-3293.40797822,0.00034209,7]
[388157950,1759023038064,-3293.40797822,0.00034209,7]
[388157952,1759023038074,-3293.40797822,0.00034209,7]
[388157954,1759023038083,-3293.40797822,0.00034209,7]
[388157956,1759023038093,-3293.40797822,0.00034209,7]
[388157958,1759023038103,-56667.59897389,0.00034223,2]
[388158395,1759023043047,-468.942,0.00034209,7]
[388158398,1759023043058,-1028.7,0.00034209,7]
[388158698,1759023046000,-1925.42455609,0.00033813,60]
[388158710,1759023046099,-661.62644246,0.00033813,60]
[388165956,1759023124898,177.4862755,0.00033813,120]
[388171523,1759023222498,-157.19980469,0.00025233,14]
[388171524,1759023222521,-134.39907941,0.00026988,13]
[388171525,1759023254598,1014.4,0.0002876,120]
[388171534,1759023355443,6581.0363288,0.0002876,120]
[388171535,1759023438402,4000.0,0.0002424,2]
[388171539,1759023617563,-413.31176625,0.00024953,2]
[388171540,1759023622135,-480.0,0.00024953,2]
[388171541,1759023624759,-180.0,0.00024953,2]
[388171543,1759023629623,-480.0,0.00024953,2]
[388171544,1759023634168,-1680.74,0.00024953,2]
[388171545,1759023638498,-480.0,0.00024953,2]
[388171546,1759023639685,-1128.34,0.00024953,2]
[388171547,1759023641934,-157.60823375,0.00024953,2]
[388171550,1759023692392,-1200.0,0.00026987,2]
[388171551,1759023692424,-2629.09178697,0.00026988,13]
[388171552,1759023692606,-2341.82642606,0.00026988,13]
[388171553,1759023692641,-300.0,0.00029303,2]
[388171554,1759023692674,-1200.0,0.00029304,2]
[388171555,1759023692705,-812.35714788,0.00029305,2]
[388171556,1759023692811,-691.64285212,0.00029305,2]
[388171557,1759023692843,-508.87263721,0.00031584,7]
[388171558,1759023692875,-420.0,0.00031605,2]
[388171559,1759023692908,-415.0,0.00031606,3]
[388171560,1759023692939,-160.0,0.00031876,2]
[388171561,1759023693775,-4945.11066772,0.00032184,2]
[388171562,1759023701775,-10000.01,0.00032184,2]
[388171563,1759023701911,-10000.01,0.00032184,2]
[388171564,1759023702018,-10000.01,0.00032184,2]
[388171565,1759023702157,-10000.01,0.00032184,2]
[388171568,1759023731714,-160.0,0.00025,3]
[388171570,1759023743241,-160.0,0.000253,2]
[388171602,1759023938466,-400.71862635,0.00024953,2]
[388171603,1759023941121,-480.0,0.00024953,2]
[388171604,1759023943650,-480.0,0.00024953,2]
[388171605,1759023945671,-403.0,0.00024953,2]
[388171606,1759023947764,-408.19341786,0.00024953,2]
[388171610,1759024047120,-710.40500055,0.00029955,2]
[388171631,1759024232106,-471.61286875,0.00029411,2]
[388171633,1759024232118,-306.75976401,0.00029411,2]
[388171635,1759024232127,-831.19903966,0.00029411,2]
[388171637,1759024232137,-7.67224905,0.00029955,2]
[388171639,1759024232146,-160.0,0.00031875,2]
[388171640,1759024232155,-317.428825,0.00032184,30]
[388171641,1759024232164,-1600.0,0.00032271,3]
[388171643,1759024232174,-239.60949398,0.00032487,2]
[388171645,1759024232183,-21044.12985653,0.00032585,2]
[388171647,1759024232192,-303.0,0.00032585,3]
[388171649,1759024232202,-303.0,0.00032585,3]
[388171651,1759024232211,-303.0,0.00032585,3]
[388171653,1759024232220,-237.0,0.00032585,3]
[388171655,1759024232229,-400.0,0.00032585,2]
[388171657,1759024232238,-625.60731448,0.00032586,2]
[388171660,1759024232248,-500.0,0.00032586,2]
[388171664,1759024232257,-173.4821229,0.00032586,2]
[388171668,1759024232265,-500.0,0.00032586,2]
[388171671,1759024232275,-500.0,0.00032586,2]
[388171674,1759024232284,-500.0,0.00032586,2]
[388171676,1759024232293,-500.0,0.00032586,2]
[388171678,1759024232302,-588.06624604,0.00032586,2]
[388171680,1759024232311,-572.46236235,0.00032586,2]
[388171683,1759024232320,-500.0,0.00032586,2]
[388171684,1759024232330,-500.0,0.00032586,2]
[388171686,1759024232339,-500.0,0.00032586,2]
[388171688,1759024232348,-500.0,0.00032586,2]
[388171690,1759024232357,-500.0,0.00032586,2]
[388171692,1759024232366,-500.0,0.00032586,2]
[388171694,1759024232376,-500.0,0.00032586,2]
[388171696,1759024232385,-500.0,0.00032586,2]
[388171697,1759024232395,-500.0,0.00032586,2]
[388171699,1759024232404,-327.86866041,0.00032586,2]
[388171701,1759024232414,-571.72212367,0.00032586,2]
[388171703,1759024232423,-500.0,0.00032586,2]
[388171705,1759024232433,-500.0,0.00032586,2]
[388171707,1759024232442,-500.0,0.00032586,2]
[388171709,1759024232451,-500.0,0.00032586,2]
[388171711,1759024232460,-500.0,0.00032586,2]
[388171713,1759024232469,-500.0,0.00032586,2]
[388171715,1759024232478,-1200.0,0.00032586,3]
[388171716,1759024232487,-168.0,0.00032727,2]
[388171718,1759024232497,-1556.8880682,0.00032787,2]
[388171720,1759024232507,-340.934166,0.00032877,2]
[388171722,1759024232515,-3437.7499008,0.0003301,2]
[388171724,1759024232525,-259.42332289,0.000332,117]
[388171726,1759024232534,-1000.0,0.00033424,120]
[388171728,1759024232543,-1000.0,0.00033424,120]
[388171730,1759024232553,-1000.0,0.00033424,120]
[388171732,1759024232562,-1000.0,0.00033424,120]
[388171734,1759024232571,-1000.0,0.00033424,120]
[388171736,1759024232581,-1000.0,0.00033424,120]
[388171738,1759024232590,-1000.0,0.00033424,120]
[388171739,1759024232599,-1000.0,0.00033424,120]
[388171741,1759024232609,-1000.0,0.00033424,120]
[388171743,1759024232618,-1000.0,0.00033424,120]
[388171745,1759024232627,-1000.0,0.00033424,120]
[388171747,1759024232636,-638.29092891,0.00033424,120]
[388171756,1759024232717,-361.70907109,0.00033424,120]
[388171757,1759024232727,-1000.0,0.00033424,120]
[388171758,1759024232736,-1000.0,0.00033424,120]
[388171760,1759024232746,-1000.0,0.00033424,120]
[388171761,1759024232755,-1000.0,0.00033424,120]
[388171762,1759024232764,-1000.0,0.00033424,120]
[388171763,1759024232775,-1000.0,0.00033424,120]
[388171764,1759024232785,-1000.0,0.00033424,120]
[388171765,1759024232794,-1000.0,0.00033424,120]
[388171766,1759024232803,-1000.0,0.00033424,120]
[388171767,1759024232813,-1119.54655499,0.00033424,120]
[388171768,1759024232822,-189.3309625,0.00033424,120]
[388171769,1759024232832,-239.60949398,0.00033468,2]
[388171770,1759024232841,-500.0,0.00033744,7]
[388171771,1759024232850,-320.77229812,0.00033812,14]
[388171772,1759024232860,-1454.19968889,0.00033813,60]
[388171784,1759024238032,-1026.99931256,0.00033813,60]
[388171785,1759024238042,-1767.74384608,0.00033817,4]
[388171786,1759024238053,-150.0,0.00033818,30]
[388171787,1759024238063,-262.802379,0.00033989,120]
[388171788,1759024238087,-324.257621,0.00033989,120]
[388171789,1759024238098,-11350.16321413,0.0003399,2]
[388171790,1759024238107,-1162.66324087,0.00034013,2]
[388171791,1759024238117,-642.2866362,0.00034022,2]
[388171792,1759024238126,-267.68623289,0.00034056,2]
[388171793,1759024238135,-2314.13459227,0.00034087,7]
[388171794,1759024238145,-232.08075179,0.00034087,7]
[388171795,1759024238154,-2314.13459227,0.00034087,7]
[388171796,1759024238163,-2314.13459227,0.00034087,7]
[388171797,1759024238172,-2314.13459227,0.00034087,7]
[388171798,1759024238181,-2314.13459227,0.00034087,7]
[388171799,1759024238191,-2314.13459227,0.00034087,7]
[388171800,1759024238200,-2314.13459227,0.00034087,7]
[388171801,1759024238209,-2314.13459227,0.00034087,7]
[388171802,1759024238218,-2314.13459227,0.00034087,7]
[388171803,1759024238228,-2314.13459227,0.00034087,7]
[388171804,1759024238238,-2314.13459227,0.00034087,7]
[388171805,1759024238248,-2314.13459227,0.00034087,7]
[388171806,1759024238257,-2314.13459227,0.00034087,7]
[388171807,1759024238268,-1881.11260361,0.00034087,7]
[388171816,1759024240121,-433.02198866,0.00034087,7]
[388171817,1759024240131,-33.47413427,0.00034087,7]
[388171818,1759024240141,-1433.49650785,0.00034087,7]
[388171819,1759024240152,-847.16395015,0.00034087,7]
[388171820,1759024240161,-152.83604985,0.00034087,7]